[Event "DLM Youth 2024"]
[Site "Tuebingen"]
[Date "2024.10.05"]
[Round "5"]
[White "Aguike, Toshiya"]
[Black "Dohon, Maria-Johanna"]
[Result "1-0"]
[ECO "B88"]
[WhiteElo "1719"]
[BlackElo "1717"]
[Annotator "NA RC"]
[PlyCount "117"]
[EventDate "2024.10.03"]
[EventType "team-swiss"]
[EventRounds "7"]
[EventCountry "GER"]
[SourceTitle "playchess.com"]
[Source "ChessBase"]
[SourceQuality "1"]
[TimeControl "40/5400+30:1800+30"]

1. e4 {[%emt 0:00:06]} c5 {[%emt 0:00:10]} 2. Nf3 {[%emt 0:00:13]} d6 {[%emt 0:00:09]} 3. d4 {[%emt 0:00:12]} cxd4 {[%emt 0:00:19]} 4. Nxd4 {[%emt 0:00:12]} Nf6 {[%emt 0:00:05]} 5. Nc3 {[%emt 0:00:34]} Nc6 {[%emt 0:00:06]} 6. Bc4 {[%emt 0:00:13]} e6 {[%emt 0:00:54]} 7. Nf3 {[%emt 0:00:51]} Be7 {[%emt 0:00:44]} 8. O-O {[%emt 0:00:56]} a6 {[%emt 0:00:37]} 9. a3 {[%emt 0:00:24]} O-O {[%emt 0:01:58]} 10. Bb3 {[%emt 0:00:36]} Bd7 {[%emt 0:06:14]} 11. h3 {[%emt 0:02:27]} Rc8 {[%emt 0:01:55]} 12. Qe2 {[%emt 0:05:43]} b5 {[%emt 0:02:58]} 13. Rd1 {[%emt 0:13:25]} Qc7 {[%emt 0:06:58]} 14. Bf4 {[%emt 0:04:18]} h6 {[%emt 0:12:13]} 15. e5 {[%emt 0:03:22]} dxe5 {[%emt 0:03:28]} 16. Nxe5 {[%emt 0:02:07]} Nxe5 {[%emt 0:01:24]} 17. Bxe5 {[%emt 0:00:10]} Qb7 {[%emt 0:01:46]} 18. Rd3 {[%emt 0:06:32]} Bc6 {[%emt 0:10:35]} 19. Rg3 {[%emt 0:04:01]} Rcd8 {[%emt 0:08:15]} 20. Re1 {[%emt 0:03:17]} Kh7 {[%emt 0:04:43]} 21. Ba2 {[%emt 0:04:00]} Rg8 {[%emt 0:06:31]} 22. Bb1 {[%emt 0:01:14]} g6 {[%emt 0:08:02]} 23. Nd1 {[%emt 0:05:40]} Ne4 {[%emt 0:07:30]} 24. Rf3 {[%emt 0:12:18]} Bf8 {[%emt 0:01:12]} 25. c3 {[%emt 0:01:32]} Nd2 {[%emt 0:02:42]} 26. Rd3 {[%emt 0:01:44]} Rxd3 {[%emt 0:00:38]} 27. Bxd3 {[%emt 0:01:20]} Nb3 {[%emt 0:01:29]} 28. Ne3 {[%emt 0:01:25]} Nc5 {[%emt 0:00:56]} 29. Bc2 {[%emt 0:04:52]} Nd7 {[%emt 0:00:25]} 30. Bg3 {[%emt 0:04:18]} Bg7 {[%emt 0:00:53]} 31. f3 {[%emt 0:01:34]} Qa7 {[%emt 0:00:46]} 32. Kh1 {[%emt 0:00:29]} Qc5 {[%emt 0:00:25]} 33. f4 {[%emt 0:02:49]} Nf6 {[%emt 0:01:15]} 34. Ng4 {[%emt 0:02:03]} Nxg4 {[%emt 0:01:22]} 35. Qxg4 {[%emt 0:00:21]} Rd8 {[%emt 0:01:07]} 36. Re2 {[%emt 0:05:33]} Kg8 {[%emt 0:01:46]} 37. Bh4 {[%emt 0:01:51]} Rb8 {[%emt 0:02:45]} 38. Qg3 {[%emt 0:04:01]} Qb6 {[%emt 0:02:15]} 39. Qd3 {[%emt 0:02:33]} a5 {[%emt 0:01:06]} 40. Bf2 {[%emt 0:00:18]} Qb7 {[%emt 0:00:38]} 41. Bg3 {[%emt 0:30:52]} Ra8 {[%emt 0:01:55]} 42. Be1 {[%emt 0:00:00]} Bd5 {[%emt 0:01:05]} 43. b3 {[%emt 0:00:00]} Rc8 {[%emt 0:00:26]} 44. Rf2 {[%emt 0:00:00]} Bf6 {[%emt 0:03:01]} 45. Kh2 {[%emt 0:00:00]} Qe7 {[%emt 0:02:22]} 46. Qxb5 {[%emt 0:00:00]} Qxa3 {[%emt 0:04:07]} 47. c4 {[%emt 0:00:00]} Bc6 {[%emt 0:03:33]} 48. Qa6 {[%emt 0:00:00]} Qf8 {[%emt 0:04:14]} 49. Qxa5 {[%emt 0:00:00]} Bd8 {[%emt 0:01:06]} 50. Qa6 {[%emt 0:00:00]} Bf6 {[%emt 0:03:22]} 51. b4 {[%emt 0:00:00]} Qe8 {[%emt 0:01:40]} 52. b5 {[%emt 0:00:00]} Bd7 {[%emt 0:01:43]} 53. Bb3 {[%emt 0:00:00]} Bd4 {[%emt 0:01:21]} 54. Ra2 {[%emt 0:00:00]} Bc5 {[%emt 0:01:02]} 55. Bf2 {[%emt 0:00:00]} Bxf2 {[%emt 0:01:54]} 56. Rxf2 {[%emt 0:00:00]} Ra8 {[%emt 0:00:51]} 57. Qd6 {[%emt 0:00:00]} Kg7 {[%emt 0:03:15]} 58. Rd2 {[%emt 0:00:00]} Ra7 {[%emt 0:00:27]} 59. Qd4+ {[%emt 0:00:00]} 1-0

[Event "DLM Youth 2024"]
[Site "Tuebingen"]
[Date "2024.10.05"]
[Round "5"]
[White "Rafikova, Ailin"]
[Black "Loos, Tilda"]
[Result "1/2-1/2"]
[ECO "B26"]
[WhiteElo "1707"]
[BlackElo "1700"]
[Annotator "NA RC"]
[PlyCount "43"]
[EventDate "2024.10.03"]
[EventType "team-swiss"]
[EventRounds "7"]
[EventCountry "GER"]
[SourceTitle "playchess.com"]
[Source "ChessBase"]
[SourceQuality "1"]
[TimeControl "40/5400+30:1800+30"]

1. e4 {[%emt 0:00:03]} c5 {[%emt 0:00:04]} 2. Nc3 {[%emt 0:00:18]} g6 {[%emt 0:00:05]} 3. g3 {[%emt 0:00:08]} Bg7 {[%emt 0:00:17]} 4. Bg2 {[%emt 0:00:09]} Nc6 {[%emt 0:00:04]} 5. d3 {[%emt 0:00:38]} d6 {[%emt 0:00:06]} 6. Nge2 {[%emt 0:00:52]} Rb8 {[%emt 0:00:22]} 7. Be3 {[%emt 0:01:16]} b5 {[%emt 0:00:07]} 8. Qd2 {[%emt 0:02:04]} b4 {[%emt 0:01:55]} 9. Nd1 {[%emt 0:01:53]} e6 {[%emt 0:00:45]} 10. O-O {[%emt 0:02:54]} Qc7 {[%emt 0:03:37]} 11. h3 {[%emt 0:06:18]} a5 {[%emt 0:02:10]} 12. f4 {[%emt 0:12:52]} Nge7 {[%emt 0:01:15]} 13. g4 {[%emt 0:04:44]} O-O {[%emt 0:05:39]} 14. Ng3 {[%emt 0:04:19]} f5 {[%emt 0:08:37]} 15. g5 {[%emt 0:06:36]} c4 {[%emt 0:13:38]} 16. h4 {[%emt 0:10:35]} Ba6 {[%emt 0:05:52]} 17. Re1 {[%emt 0:04:56]} d5 {[%emt 0:15:10]} 18. exf5 {[%emt 0:13:45]} exf5 {[%emt 0:01:52]} 19. d4 {[%emt 0:02:27]} Rb6 {[%emt 0:12:30]} 20. Rb1 {[%emt 0:07:19]} Qd6 {[%emt 0:07:50]} 21. Kf2 {[%emt 0:04:24]} a4 {[%emt 0:05:06]} 22. Bf3 {[%emt 0:04:48]} 1/2-1/2

[Event "DLM Youth 2024"]
[Site "Tuebingen"]
[Date "2024.10.05"]
[Round "5"]
[White "Heidtkamp, Anna"]
[Black "Busch, Lara Sophie"]
[Result "0-1"]
[ECO "C50"]
[WhiteElo "1704"]
[BlackElo "1714"]
[Annotator "NA RC"]
[PlyCount "130"]
[EventDate "2024.10.03"]
[EventType "team-swiss"]
[EventRounds "7"]
[EventCountry "GER"]
[SourceTitle "playchess.com"]
[Source "ChessBase"]
[SourceQuality "1"]
[TimeControl "40/5400+30:1800+30"]

1. e4 {[%emt 0:00:01]} e5 {[%emt 0:00:07]} 2. Nf3 {[%emt 0:00:05]} Nc6 {[%emt 0:00:17]} 3. Bc4 {[%emt 0:00:05]} Bc5 {[%emt 0:00:17]} 4. d3 {[%emt 0:00:05]} Nf6 {[%emt 0:00:39]} 5. Nc3 {[%emt 0:00:10]} d6 {[%emt 0:00:29]} 6. Bg5 {[%emt 0:00:18]} h6 {[%emt 0:01:46]} 7. Be3 {[%emt 0:00:09]} Bb6 {[%emt 0:00:27]} 8. Na4 {[%emt 0:01:33]} Na5 {[%emt 0:09:32]} 9. Bb3 {[%emt 0:00:38]} Nxb3 {[%emt 0:03:26]} 10. axb3 {[%emt 0:00:15]} Ba5+ {[%emt 0:02:22]} 11. Bd2 {[%emt 0:00:30]} Bxd2+ {[%emt 0:01:09]} 12. Qxd2 {[%emt 0:00:09]} Be6 {[%emt 0:02:09]} 13. h3 {[%emt 0:00:39]} Nh5 {[%emt 0:03:05]} 14. g4 {[%emt 0:03:24]} Nf4 {[%emt 0:01:02]} 15. O-O-O {[%emt 0:00:56]} g5 {[%emt 0:03:15]} 16. d4 {[%emt 0:24:22]} f6 {[%emt 0:04:13]} 17. d5 {[%emt 0:04:48]} Bd7 {[%emt 0:01:45]} 18. Ng1 {[%emt 0:10:39]} Ke7 {[%emt 0:13:54]} 19. Ne2 {[%emt 0:04:08]} Qe8 {[%emt 0:13:17]} 20. Nxf4 {[%emt 0:01:45]} gxf4 {[%emt 0:00:04]} 21. Nc3 {[%emt 0:00:20]} Qf7 {[%emt 0:01:31]} 22. f3 {[%emt 0:04:03]} Rag8 {[%emt 0:02:59]} 23. Qf2 {[%emt 0:10:18]} b6 {[%emt 0:01:47]} 24. Qe2 {[%emt 0:05:21]} Qe8 {[%emt 0:04:19]} 25. Qa6 {[%emt 0:03:16]} Qb8 {[%emt 0:03:00]} 26. Kd2 {[%emt 0:08:48]} h5 {[%emt 0:07:18]} 27. Nb5 {[%emt 0:02:12]} Bxb5 {[%emt 0:01:40]} 28. Qxb5 {[%emt 0:00:05]} a5 {[%emt 0:01:13]} 29. Qc6 {[%emt 0:01:34]} Qd8 {[%emt 0:01:55]} 30. Rdg1 {[%emt 0:01:32]} h4 {[%emt 0:03:50]} 31. Rg2 {[%emt 0:02:07]} Qd7 {[%emt 0:01:48]} 32. Qxd7+ {[%emt 0:00:10]} Kxd7 {[%emt 0:00:12]} 33. Kc3 {[%emt 0:00:26]} Rg5 {[%emt 0:03:18]} 34. Kc4 {[%emt 0:00:37]} c6 {[%emt 0:01:27]} 35. Rd2 {[%emt 0:01:57]} Rc8 {[%emt 0:01:10]} 36. dxc6+ {[%emt 0:02:21]} Kxc6 {[%emt 0:02:33]} 37. Rd5 {[%emt 0:02:58]} Rg7 {[%emt 0:00:55]} 38. c3 {[%emt 0:01:18]} Rb7 {[%emt 0:02:02]} 39. Rhd1 {[%emt 0:00:32]} b5+ {[%emt 0:01:01]} 40. Kd3 {[%emt 0:00:20]} Rd8 {[%emt 0:01:44]} 41. Kc2 {[%emt 0:30:51]} Rbd7 {[%emt 0:06:17]} 42. Ra1 {[%emt 0:00:00]} f5 {[%emt 0:04:11]} 43. gxf5 {[%emt 0:00:00]} Rg7 {[%emt 0:00:48]} 44. Rh1 {[%emt 0:00:00]} Rg2+ {[%emt 0:00:43]} 45. Kc1 {[%emt 0:00:00]} Rf2 {[%emt 0:01:22]} 46. Rd3 {[%emt 0:00:00]} Rg8 {[%emt 0:02:05]} 47. Rd2 {[%emt 0:00:00]} Rgg2 {[%emt 0:06:19]} 48. Rxf2 {[%emt 0:00:00]} Rxf2 {[%emt 0:00:02]} 49. b4 {[%emt 0:02:43]} axb4 {[%emt 0:00:31]} 50. cxb4 {[%emt 0:00:06]} Rxf3 {[%emt 0:00:26]} 51. Rh2 {[%emt 0:03:03]} Kd7 {[%emt 0:00:56]} 52. Rg2 {[%emt 0:01:47]} Rg3 {[%emt 0:00:31]} 53. Rh2 {[%emt 0:00:08]} Re3 {[%emt 0:03:10]} 54. Rg2 {[%emt 0:01:32]} Rxe4 {[%emt 0:00:55]} 55. Rg7+ {[%emt 0:00:21]} Kc6 {[%emt 0:01:01]} 56. f6 {[%emt 0:01:01]} f3 {[%emt 0:00:25]} 57. f7 {[%emt 0:01:04]} Rf4 {[%emt 0:00:22]} 58. Rg1 {[%emt 0:00:21]} Rxf7 {[%emt 0:00:24]} 59. Kd2 {[%emt 0:00:12]} e4 {[%emt 0:01:01]} 60. Ke3 {[%emt 0:00:14]} d5 {[%emt 0:01:15]} 61. Rg6+ {[%emt 0:00:28]} Kc7 {[%emt 0:00:35]} 62. Rg1 {[%emt 0:00:30]} Rf5 {[%emt 0:02:17]} 63. Kd4 {[%emt 0:00:35]} Kd6 {[%emt 0:00:49]} 64. b3 {[%emt 0:01:08]} f2 {[%emt 0:00:24]} 65. Rf1 {[%emt 0:00:06]} Rf3 {[%emt 0:00:30]} 0-1

[Event "DLM Youth 2024"]
[Site "Tuebingen"]
[Date "2024.10.05"]
[Round "5"]
[White "Andersen, Jonathan"]
[Black "Fischermann, Simon"]
[Result "1-0"]
[ECO "C45"]
[WhiteElo "1676"]
[BlackElo "1873"]
[Annotator "NA RC"]
[PlyCount "79"]
[EventDate "2024.10.03"]
[EventType "team-swiss"]
[EventRounds "7"]
[EventCountry "GER"]
[SourceTitle "playchess.com"]
[Source "ChessBase"]
[SourceQuality "1"]
[TimeControl "40/5400+30:1800+30"]

1. e4 {[%emt 0:00:04]} e5 {[%emt 0:00:05]} 2. Nf3 {[%emt 0:00:04]} Nc6 {[%emt 0:00:06]} 3. d4 {[%emt 0:00:04]} exd4 {[%emt 0:00:01]} 4. Nxd4 {[%emt 0:00:01]} Qf6 {[%emt 0:00:11]} 5. Be3 {[%emt 0:00:13]} Bc5 {[%emt 0:00:05]} 6. c3 {[%emt 0:00:06]} Nge7 {[%emt 0:00:08]} 7. Qd2 {[%emt 0:00:05]} d5 {[%emt 0:01:27]} 8. Nb5 {[%emt 0:00:13]} Bxe3 {[%emt 0:02:38]} 9. Qxe3 {[%emt 0:00:11]} O-O {[%emt 0:01:24]} 10. Nxc7 {[%emt 0:00:15]} d4 {[%emt 0:02:42]} 11. cxd4 {[%emt 0:03:10]} Nxd4 {[%emt 0:01:19]} 12. Bd3 {[%emt 0:02:05]} Qb6 {[%emt 0:01:45]} 13. Nxa8 {[%emt 0:04:11]} Qxb2 {[%emt 0:00:11]} 14. O-O {[%emt 0:00:13]} Qxa1 {[%emt 0:03:26]} 15. Qd2 {[%emt 0:03:45]} Nf3+ {[%emt 0:01:06]} 16. gxf3 {[%emt 0:00:07]} Bh3 {[%emt 0:00:30]} 17. Rc1 {[%emt 0:08:05]} Qf6 {[%emt 0:01:01]} 18. Bf1 {[%emt 0:05:31]} Bxf1 {[%emt 0:00:07]} 19. Rxf1 {[%emt 0:00:07]} Ng6 {[%emt 0:06:21]} 20. Qe3 {[%emt 0:12:56]} Rxa8 {[%emt 0:00:50]} 21. Nc3 {[%emt 0:07:48]} Rc8 {[%emt 0:12:47]} 22. Nd5 {[%emt 0:00:00]} Qa6 {[%emt 0:08:30]} 23. f4 {[%emt 0:00:00]} Kh8 {[%emt 0:04:08]} 24. h4 Nxh4 {[%emt 0:10:00]} 25. Qh3 {[%emt 0:06:42]} Qc4 {[%emt 0:08:56]} 26. Qxh4 {[%emt 0:01:44]} Qxe4 {[%emt 0:01:33]} 27. Ne3 {[%emt 0:00:37]} g5 {[%emt 0:01:58]} 28. Qg4 {[%emt 0:01:56]} Rg8 {[%emt 0:00:20]} 29. f5 {[%emt 0:00:24]} Qe5 {[%emt 0:02:29]} 30. Rd1 {[%emt 0:01:12]} Qf4 {[%emt 0:02:05]} 31. Rd4 {[%emt 0:00:39]} b5 {[%emt 0:00:31]} 32. Rxf4 {[%emt 0:00:19]} gxf4 {[%emt 0:00:07]} 33. Qxg8+ {[%emt 0:00:05]} Kxg8 {[%emt 0:00:02]} 34. Nd5 {[%emt 0:00:10]} Kg7 {[%emt 0:00:15]} 35. Kg2 {[%emt 0:00:11]} Kh6 {[%emt 0:00:36]} 36. Kf3 {[%emt 0:00:26]} Kg5 {[%emt 0:00:04]} 37. Ke4 {[%emt 0:00:10]} f3 {[%emt 0:00:26]} 38. Nc7 {[%emt 0:00:18]} b4 {[%emt 0:00:16]} 39. Na6 {[%emt 0:00:06]} h5 {[%emt 0:00:18]} 40. Nxb4 {[%emt 0:00:11]} 1-0

[Event "DLM Youth 2024"]
[Site "Tuebingen"]
[Date "2024.10.05"]
[Round "5"]
[White "Huppert, Anna"]
[Black "Tu, Tiffany"]
[Result "1-0"]
[ECO "C54"]
[WhiteElo "1661"]
[BlackElo "1675"]
[Annotator "NA"]
[PlyCount "177"]
[EventDate "2024.10.03"]
[EventType "team-swiss"]
[EventRounds "7"]
[EventCountry "GER"]
[SourceTitle "playchess.com"]
[Source "ChessBase"]
[SourceQuality "1"]
[TimeControl "40/5400+30:1800+30"]

1. e4 {[%emt 0:00:03]} e5 {[%emt 0:00:05]} 2. Nf3 {[%emt 0:00:06]} Nc6 {[%emt 0:00:04]} 3. Bc4 {[%emt 0:00:14]} Nf6 {[%emt 0:00:04]} 4. d3 {[%emt 0:00:17]} Bc5 {[%emt 0:00:05]} 5. c3 {[%emt 0:00:34]} d6 {[%emt 0:00:04]} 6. Nbd2 {[%emt 0:02:10]} Be6 {[%emt 0:01:13]} 7. Bb3 {[%emt 0:11:39]} a6 {[%emt 0:01:04]} 8. Nf1 {[%emt 0:05:22]} Ba7 {[%emt 0:02:05]} 9. h3 {[%emt 0:08:21]} Ne7 {[%emt 0:01:05]} 10. Ng3 {[%emt 0:05:08]} Ng6 {[%emt 0:01:09]} 11. d4 {[%emt 0:16:29]} exd4 {[%emt 0:08:11]} 12. cxd4 {[%emt 0:01:31]} O-O {[%emt 0:01:47]} 13. O-O {[%emt 0:01:05]} Re8 {[%emt 0:03:08]} 14. Re1 {[%emt 0:01:38]} c6 {[%emt 0:02:09]} 15. Bg5 {[%emt 0:06:32]} h6 {[%emt 0:01:52]} 16. Bd2 {[%emt 0:01:10]} Qd7 {[%emt 0:03:52]} 17. Bxe6 {[%emt 0:08:39]} Rxe6 {[%emt 0:01:57]} 18. Qc2 {[%emt 0:05:21]} Rae8 {[%emt 0:02:11]} 19. Re3 {[%emt 0:02:14]} d5 {[%emt 0:05:40]} 20. e5 {[%emt 0:02:39]} Nh7 {[%emt 0:01:31]} 21. Rae1 {[%emt 0:03:50]} Qd8 {[%emt 0:12:54]} 22. Rb3 {[%emt 0:04:09]} Qd7 {[%emt 0:03:38]} 23. Nf5 {[%emt 0:02:04]} Bb8 {[%emt 0:01:20]} 24. Nh2 {[%emt 0:01:37]} Ne7 {[%emt 0:01:23]} 25. Ng3 {[%emt 0:01:28]} Rg6 {[%emt 0:01:26]} 26. f4 {[%emt 0:02:44]} f5 {[%emt 0:07:24]} 27. Ngf1 {[%emt 0:02:17]} Ba7 {[%emt 0:00:59]} 28. Nf3 {[%emt 0:00:27]} Rc8 {[%emt 0:02:42]} 29. Be3 {[%emt 0:01:18]} h5 {[%emt 0:03:15]} 30. Nh4 {[%emt 0:00:53]} Rh6 {[%emt 0:02:47]} 31. Ng3 {[%emt 0:00:08]} Rf8 {[%emt 0:01:09]} 32. Qd1 {[%emt 0:00:45]} g6 {[%emt 0:00:45]} 33. Rb4 {[%emt 0:01:34]} Rc8 {[%emt 0:01:07]} 34. Qb3 {[%emt 0:01:01]} Rc7 {[%emt 0:00:51]} 35. Rc1 {[%emt 0:00:18]} Nf8 {[%emt 0:00:30]} 36. Ra4 {[%emt 0:01:20]} Ne6 {[%emt 0:00:40]} 37. Qb4 {[%emt 0:00:41]} Nc8 {[%emt 0:02:22]} 38. Ra3 {[%emt 0:00:33]} Nb6 {[%emt 0:01:04]} 39. Rac3 {[%emt 0:00:47]} Nc4 {[%emt 0:00:24]} 40. Ne2 {[%emt 0:00:42]} a5 {[%emt 0:01:05]} 41. Qa4 {[%emt 0:07:47]} b5 {[%emt 0:01:01]} 42. Qd1 {[%emt 0:04:33]} Nxb2 {[%emt 0:02:25]} 43. Qe1 {[%emt 0:02:51]} Nc4 {[%emt 0:03:41]} 44. Bf2 {[%emt 0:02:50]} Qe7 {[%emt 0:08:57]} 45. Nf3 {[%emt 0:01:53]} Qf8 {[%emt 0:09:29]} 46. Nd2 {[%emt 0:02:49]} c5 {[%emt 0:04:21]} 47. Rd3 {[%emt 0:07:21]} cxd4 {[%emt 0:05:43]} 48. Nxd4 {[%emt 0:01:50]} Nc5 {[%emt 0:03:11]} 49. Rf3 {[%emt 0:01:28]} Nxd2 {[%emt 0:01:22]} 50. Qxd2 {[%emt 0:00:04]} Ne4 {[%emt 0:00:25]} 51. Qd1 {[%emt 0:01:09]} Rxc1 {[%emt 0:00:14]} 52. Qxc1 {[%emt 0:00:07]} Nxf2 {[%emt 0:00:10]} 53. Kxf2 {[%emt 0:00:09]} Bxd4+ {[%emt 0:00:04]} 54. Ke2 {[%emt 0:00:15]} Rh7 {[%emt 0:02:06]} 55. Rd3 {[%emt 0:00:50]} Qb4 {[%emt 0:01:47]} 56. Qc8+ {[%emt 0:01:06]} Kg7 {[%emt 0:00:50]} 57. Qd7+ {[%emt 0:00:47]} Kh6 {[%emt 0:00:37]} 58. Qxd5 {[%emt 0:00:05]} Bc5 {[%emt 0:02:01]} 59. g4 {[%emt 0:00:55]} Qe4+ {[%emt 0:01:36]} 60. Qxe4 {[%emt 0:00:18]} fxe4 {[%emt 0:00:04]} 61. g5+ {[%emt 0:00:15]} Kg7 {[%emt 0:00:19]} 62. Rd7+ {[%emt 0:00:04]} Kg8 {[%emt 0:00:15]} 63. Rd8+ {[%emt 0:00:10]} Bf8 {[%emt 0:00:12]} 64. Ke3 {[%emt 0:00:11]} Rc7 {[%emt 0:01:44]} 65. Kxe4 {[%emt 0:00:43]} Rc4+ {[%emt 0:00:52]} 66. Kd3 {[%emt 0:01:51]} Kf7 {[%emt 0:01:41]} 67. Rd5 {[%emt 0:01:03]} Rxf4 {[%emt 0:00:42]} 68. Rxb5 {[%emt 0:00:04]} Ra4 {[%emt 0:00:31]} 69. Kc3 {[%emt 0:00:56]} Rxa2 {[%emt 0:00:34]} 70. h4 {[%emt 0:00:37]} Bb4+ {[%emt 0:00:14]} 71. Kd4 {[%emt 0:00:38]} Re2 {[%emt 0:00:58]} 72. Rb7+ {[%emt 0:00:11]} Be7 {[%emt 0:00:39]} 73. Ra7 {[%emt 0:00:07]} Ra2 {[%emt 0:01:00]} 74. Kd5 {[%emt 0:00:13]} Rd2+ {[%emt 0:00:22]} 75. Ke4 {[%emt 0:00:26]} Re2+ {[%emt 0:01:05]} 76. Kd5 {[%emt 0:00:08]} Rd2+ {[%emt 0:01:05]} 77. Ke4 {[%emt 0:00:08]} Ra2 {[%emt 0:00:22]} 78. Kd5 {[%emt 0:00:10]} a4 {[%emt 0:01:47]} 79. e6+ {[%emt 0:00:34]} Ke8 {[%emt 0:00:31]} 80. Ra8+ {[%emt 0:00:10]} Bd8 {[%emt 0:00:05]} 81. Kd6 {[%emt 0:00:13]} a3 {[%emt 0:01:01]} 82. e7 {[%emt 0:01:24]} Rd2+ {[%emt 0:00:10]} 83. Ke6 {[%emt 0:00:13]} Re2+ {[%emt 0:00:05]} 84. Kf6 {[%emt 0:00:40]} Rxe7 {[%emt 0:00:07]} 85. Kxg6 {[%emt 0:00:13]} Re3 {[%emt 0:02:13]} 86. Kxh5 {[%emt 0:00:13]} Kd7 {[%emt 0:00:13]} 87. g6 {[%emt 0:02:20]} Rg3 {[%emt 0:01:45]} 88. Ra4 {[%emt 0:00:24]} Ke7 {[%emt 0:04:42]} 89. Kh6 {[%emt 0:00:34]} 1-0

[Event "DLM Youth 2024"]
[Site "Tuebingen"]
[Date "2024.10.05"]
[Round "5"]
[White "Noennig, Lotte"]
[Black "Baklan, Kira"]
[Result "1/2-1/2"]
[ECO "C42"]
[WhiteElo "1658"]
[BlackElo "1550"]
[Annotator "NA RC"]
[PlyCount "94"]
[EventDate "2024.10.03"]
[EventType "team-swiss"]
[EventRounds "7"]
[EventCountry "GER"]
[SourceTitle "playchess.com"]
[Source "ChessBase"]
[SourceQuality "1"]
[TimeControl "40/5400+30:1800+30"]

1. e4 {[%emt 0:00:04]} e5 {[%emt 0:00:04]} 2. Nf3 {[%emt 0:00:09]} Nf6 {[%emt 0:00:05]} 3. Nxe5 {[%emt 0:02:10]} Nxe4 {[%emt 0:00:08]} 4. Qe2 {[%emt 0:02:08]} Qe7 {[%emt 0:00:08]} 5. Qxe4 {[%emt 0:04:58]} d6 {[%emt 0:00:07]} 6. d4 {[%emt 0:06:32]} dxe5 {[%emt 0:00:06]} 7. Qxe5 {[%emt 0:07:47]} Qxe5+ {[%emt 0:00:08]} 8. dxe5 {[%emt 0:00:18]} Nc6 {[%emt 0:00:09]} 9. f4 {[%emt 0:05:29]} Bf5 {[%emt 0:00:21]} 10. Bd3 {[%emt 0:17:29]} Bxd3 {[%emt 0:00:15]} 11. cxd3 {[%emt 0:00:11]} Nb4 {[%emt 0:00:16]} 12. Na3 {[%emt 0:20:32]} Nxd3+ {[%emt 0:03:09]} 13. Ke2 {[%emt 0:01:40]} O-O-O {[%emt 0:06:24]} 14. Rd1 {[%emt 0:04:40]} Nxc1+ {[%emt 0:02:57]} 15. Raxc1 {[%emt 0:00:43]} Bxa3 {[%emt 0:04:36]} 16. bxa3 {[%emt 0:00:09]} Rhe8 {[%emt 0:00:22]} 17. Kf3 {[%emt 0:04:57]} Re6 {[%emt 0:01:24]} 18. Rb1 {[%emt 0:03:17]} Rxd1 {[%emt 0:00:20]} 19. Rxd1 {[%emt 0:00:15]} Rc6 {[%emt 0:00:12]} 20. Re1 {[%emt 0:01:46]} Rc2 {[%emt 0:00:27]} 21. Re2 {[%emt 0:00:55]} Rxe2 {[%emt 0:02:10]} 22. Kxe2 {[%emt 0:00:10]} Kd7 {[%emt 0:03:11]} 23. Kd3 {[%emt 0:01:44]} Ke6 {[%emt 0:01:08]} 24. Ke4 {[%emt 0:02:10]} g6 {[%emt 0:00:33]} 25. g4 {[%emt 0:01:27]} c6 {[%emt 0:01:47]} 26. a4 {[%emt 0:02:37]} b6 {[%emt 0:01:39]} 27. Kd4 {[%emt 0:01:08]} f6 {[%emt 0:01:23]} 28. exf6 {[%emt 0:00:41]} Kxf6 {[%emt 0:00:07]} 29. Ke4 {[%emt 0:02:17]} Ke6 {[%emt 0:07:36]} 30. Kd4 {[%emt 0:01:18]} Kd6 {[%emt 0:00:50]} 31. f5 {[%emt 0:01:15]} gxf5 {[%emt 0:02:39]} 32. gxf5 {[%emt 0:00:13]} a6 {[%emt 0:02:39]} 33. Ke4 {[%emt 0:02:22]} h6 {[%emt 0:03:33]} 34. Kd4 {[%emt 0:01:36]} c5+ {[%emt 0:01:57]} 35. Kc4 {[%emt 0:01:14]} Ke5 {[%emt 0:01:40]} 36. a5 {[%emt 0:00:51]} bxa5 {[%emt 0:02:14]} 37. a4 {[%emt 0:00:29]} Kxf5 {[%emt 0:04:23]} 38. Kxc5 {[%emt 0:00:07]} Kg4 {[%emt 0:00:16]} 39. Kb6 {[%emt 0:00:12]} Kh3 {[%emt 0:00:00]} 40. Kxa6 {[%emt 0:00:06]} Kxh2 {[%emt 0:00:15]} 41. Kxa5 {[%emt 0:30:12]} Kg1 {[%emt 0:30:18]} 42. Kb6 {[%emt 0:00:20]} h5 {[%emt 0:00:15]} 43. a5 {[%emt 0:00:25]} h4 {[%emt 0:00:04]} 44. a6 {[%emt 0:00:29]} h3 {[%emt 0:00:04]} 45. a7 {[%emt 0:00:16]} h2 {[%emt 0:00:03]} 46. a8=Q {[%emt 0:00:20]} h1=Q {[%emt 0:00:08]} 47. Qxh1+ {[%emt 0:00:07]} Kxh1 {[%emt 0:00:39]} 1/2-1/2

[Event "DLM Youth 2024"]
[Site "Tuebingen"]
[Date "2024.10.05"]
[Round "5"]
[White "Wang, Enya Marie"]
[Black "Hoffmann, Sophia"]
[Result "0-1"]
[ECO "C54"]
[WhiteElo "1613"]
[BlackElo "1718"]
[Annotator "NA RC"]
[PlyCount "60"]
[EventDate "2024.10.03"]
[EventType "team-swiss"]
[EventRounds "7"]
[EventCountry "GER"]
[SourceTitle "playchess.com"]
[Source "ChessBase"]
[SourceQuality "1"]
[TimeControl "40/5400+30:1800+30"]

1. e4 {[%emt 0:00:01]} e5 {[%emt 0:00:05]} 2. Nf3 {[%emt 0:00:05]} Nc6 {[%emt 0:00:04]} 3. Bc4 {[%emt 0:00:08]} Bc5 {[%emt 0:00:22]} 4. c3 {[%emt 0:00:09]} Nf6 {[%emt 0:00:15]} 5. d4 {[%emt 0:00:09]} exd4 {[%emt 0:00:07]} 6. e5 {[%emt 0:00:07]} d5 {[%emt 0:00:04]} 7. Bb5 {[%emt 0:00:10]} Ne4 {[%emt 0:00:11]} 8. cxd4 {[%emt 0:00:20]} Bb6 {[%emt 0:00:08]} 9. Nc3 {[%emt 0:00:43]} O-O {[%emt 0:00:22]} 10. Be3 {[%emt 0:00:13]} Bg4 {[%emt 0:01:02]} 11. Qc2 {[%emt 0:01:14]} Bf5 {[%emt 0:04:52]} 12. Qb3 {[%emt 0:02:37]} Ne7 {[%emt 0:02:13]} 13. O-O {[%emt 0:00:52]} c6 {[%emt 0:00:28]} 14. Be2 {[%emt 0:00:31]} Ng6 {[%emt 0:03:50]} 15. Rfd1 {[%emt 0:03:41]} f6 {[%emt 0:07:24]} 16. exf6 {[%emt 0:00:56]} Qxf6 {[%emt 0:07:38]} 17. Bd3 {[%emt 0:02:28]} Kh8 {[%emt 0:09:28]} 18. Qc2 {[%emt 0:05:10]} Rae8 {[%emt 0:07:11]} 19. Na4 {[%emt 0:05:51]} Bc7 {[%emt 0:06:24]} 20. Rac1 {[%emt 0:03:11]} Nh4 {[%emt 0:07:54]} 21. Nxh4 {[%emt 0:04:50]} Qxh4 {[%emt 0:00:52]} 22. h3 {[%emt 0:10:19]} Rf6 {[%emt 0:14:22]} 23. Nc3 {[%emt 0:10:03]} Bxh3 {[%emt 0:15:32]} 24. Nxd5 {[%emt 0:09:55]} Rg6 {[%emt 0:08:40]} 25. Bxe4 {[%emt 0:05:54]} Rxe4 {[%emt 0:01:11]} 26. Nxc7 {[%emt 0:02:02]} Bxg2 {[%emt 0:01:05]} 27. f4 {[%emt 0:09:05]} Rxe3 {[%emt 0:01:07]} 28. Rd2 {[%emt 0:05:17]} Be4+ {[%emt 0:00:27]} 29. Kf1 {[%emt 0:02:12]} Qh1+ {[%emt 0:00:32]} 30. Kf2 {[%emt 0:00:28]} Qf3# {[%emt 0:00:12]} 0-1